Cogmind - Beta 12 @@@ ROGUE MODE // 2023.06.26 @ 12:12:46 Player: PionFour Result: Destroyed by as-73381 with Assembled Heavy Rifle Performance ------------- Evolutions (1) 500 Regions Visited (5) 1000 Robots Destroyed (41) 205 Value Destroyed (709) 709 Prototype IDs (16) 320 Alien Tech Used (0) 0 Bonus (212) 212 TOTAL SCORE: 2946 Bonus ------- Follower Combat Kills 109 Aligned with FarCom 300 Friendly Fire -197 Cogmind --------- Core Integrity 0/400 Matter 290/300 Energy 95/100 System Corruption 2% Temperature Cool (0) Movement Core (50) Location -9/Exiles Parts ------- > --- POWER (1) -------- (None) > --- PROPULSION (3) --- Carbon-fiber Leg > --- UTILITY (3) ------ Improved Signal Interpreter Modified TNC > --- WEAPON (2) ------- (None) > --- INVENTORY (5) ---- Small Storage Unit Sensor Array ECM Suite Improved Light Cannon Mining Laser Peak State ------------ > --- POWER ------------ Light Deuterium Engine > --- PROPULSION ------- Flight Unit Flight Unit Flight Unit > --- UTILITY ---------- Improved Signal Interpreter Improved Terrain Scanner Modified TNC > --- WEAPON ----------- Improved Light Cannon Datajack > --- INVENTORY -------- Small Storage Unit Sensor Array ECM Suite Mining Laser Flail [Rating: 21] Favorites ----------- Power Light Ion Engine Engine Light Ion Engine Power Core Light Nuclear Core Propulsion Flight Unit Leg Aluminum Leg Wheel Wheel Hover Unit Hover Unit Flight Unit Flight Unit Utility Small Storage Unit Device Structural Scanner Storage Small Storage Unit Processor Improved Signal Interpreter Weapon Light Assault Rifle Energy Gun Small Laser Energy Cannon Heavy Particle Cannon Ballistic Gun Light Assault Rifle Ballistic Cannon Improved Light Cannon Launcher Rocket Launcher Special Weapon Welding Torch Impact Weapon Flail Slashing Weapon Mining Claw Special Melee Weapon Datajack Build | -11 -10 -10 -9 -9 -9 ------- Run | Jun Mat Min Mat Min Exi Slots Evolved 2 | . . . 2 . . Power . | . . . . . . Propulsion 1 | . . . 1 . . Utility 1 | . . . 1 . . Weapon . | . . . . . . Parts Attached 77 | 7 17 28 13 5 7 Power 11 | 1 4 4 2 . . Engine 8 | 1 2 3 2 . . Core 3 | . 2 1 . . . Reactor . | . . . . . . Propulsion 20 | 2 4 9 2 2 1 Treads . | . . . . . . Leg 2 | . . 1 . . 1 Wheel 9 | 2 2 5 . . . Hover 3 | . 2 1 . . . Flight 6 | . . 2 2 2 . Utility 24 | 2 6 7 5 1 3 Device 13 | 1 2 5 3 1 1 Storage 4 | 1 3 . . . . Processor 7 | . 1 2 2 . 2 Hackware . | . . . . . . Protection . | . . . . . . Artifact . | . . . . . . Weapon 22 | 2 3 8 4 2 3 Energy Gun 2 | 1 . . . . 1 Energy Cannon 2 | . . . 2 . . Ballistic Gun 10 | 1 2 6 . 1 . Ballistic Cannon 1 | . . . . 1 . Launcher 2 | . . 1 1 . . Special Weapon 1 | . . 1 . . . Impact Weapon 2 | . . . 1 . 1 Slashing Weapon 1 | . 1 . . . . Piercing Weapon . | . . . . . . Special Melee Weapon 1 | . . . . . 1 Unidentified Prototypes 1 | . . . . . 1 Parts Lost 15 | . 2 5 . . 8 Power 1 | . . . . . 1 Propulsion 8 | . 1 4 . . 3 Utility 1 | . . . . . 1 Weapon 5 | . 1 1 . . 3 Highest Loss Streak 8 | . 2 5 . . 8 To Critical Strikes 1 | . . . . . 1 Average Slot Usage (%) 92 | . 98 86 95 100 95 Engine 9 | . 3 13 11 11 10 Core 3 | . 10 . . . . Leg 1 | . . 3 . . . Wheel 7 | . 12 7 . . . Hover 5 | . 14 2 . . . Flight 13 | . . 10 33 33 30 Device 16 | . 11 17 23 33 12 Storage 7 | . 13 8 . . . Processor 4 | . 3 . 5 . 19 Ballistic Gun 13 | . 18 16 . 7 1 Ballistic Cannon 1 | . . . . 11 10 Slashing Weapon 2 | . 6 1 . . . Special Melee Weapon 1 | . . . . . 8 Naked Turns . | . . . . . . Heaviest Build 18 | 12 18 13 17 15 14 Greatest Support 26 | 26 26 20 21 21 21 Greatest Overweight (x) 3 | . 2 3 . . 1 Average Overweight (x) . | . . . . . . Largest Inventory Capacity 10 | 8 10 8 5 5 5 Average Capacity 6 | 7 7 6 5 5 5 Most Carried 9 | 8 9 8 5 5 5 Average Carried 6 | 4 7 6 4 4 4 Final Capacity 8 | 8 8 5 5 5 5 Final Carried 8 | 7 8 5 5 5 5 Class Distribution -------------------- 51% | Scavenger-Mutant 42% | Mutant 5% | Scavenger-Scout Dominant Class ---------------- Mutant | -10/Materials Scavenger-Mutant | -10/Mines Scavenger-Mutant | -9/Materials Scavenger-Mutant | -9/Mines Mutant | -9/Exiles Resources | -11 -10 -10 -9 -9 -9 ----------- Run | Jun Mat Min Mat Min Exi Matter Collected 1221 | 288 123 351 316 30 113 Remotely . | . . . . . . Salvage Created 953 | 151 243 297 217 19 26 Parts 87 | 9 24 29 22 3 . Haulers Intercepted 1 | . 1 . . . . Recyclers Shooed . | . . . . . . Parts Field Recycled . | . . . . . . Retrieved Matter . | . . . . . . Parts Self-Destructed . | . . . . . . Prevented . | . . . . . . Kills | -11 -10 -10 -9 -9 -9 ------- Run | Jun Mat Min Mat Min Exi Combat Hostiles Destroyed 20 | . 5 7 5 2 1 Melee 2 | . . 1 . . 1 Guns 10 | . 5 3 . 2 . Cannons 2 | . . . 2 . . AOE 6 | . . 3 3 . . Classes Destroyed 11 | 2 5 2 1 . 1 Worker 3 | . . 1 2 . . Builder 5 | . 2 2 1 . . Tunneler 6 | 3 . 3 . . . Hauler 1 | . 1 . . . . Recycler 1 | 1 . . . . . Mechanic 1 | . . 1 . . . Watcher 5 | . 2 . 3 . . Swarmer 7 | . 3 2 . 2 . Grunt 11 | . 2 5 4 . . Sentry 1 | . . . 1 . . Assembled 2 | . . . . . 2 Best Kill Streak 10 | 2 4 5 10 2 1 Combat Bots Only 4 | . 4 3 4 2 1 Max Kills in Single Turn 2 | 1 1 2 2 2 1 Gunslinging 1 | . . 1 . . . Exploded 2 | . . 2 1 . . Melee 1 | . . 1 . . 1 Uniques/NPCs Destroyed . | . . . . . . Combat | -11 -10 -10 -9 -9 -9 -------- Run | Jun Mat Min Mat Min Exi Damage Taken 1920 | . 456 467 198 130 669 Core 601 | . 131 70 60 27 313 Absorbed by Shields . | . . . . . . Core Remaining (%) 59 | 100 . 19 . . . Volleys Fired 103 | 12 31 37 18 5 . Largest 2 | 2 2 2 1 2 . Hottest 75 | 60 60 40 75 62 . Shots Fired 148 | 24 50 46 18 10 . Gun 121 | 24 50 42 . 5 . Cannon 15 | . . . 10 5 . Launcher 11 | . . 3 8 . . Special 1 | . . 1 . . . Kinetic 102 | 12 38 42 . 10 . Thermal 35 | 12 12 1 10 . . Explosive 11 | . . 3 8 . . Electromagnetic . | . . . . . . Robot Hit Streak 14 | 3 6 14 4 3 . Robot Miss Streak 4 | 2 2 3 2 4 . Penetration Max . | . . . . . . Secondary Targets 1 | . . 1 . . . Max Gunslinging Chain 1 | . . 1 . . . Shots Hit Robots 113 | 13 40 43 8 3 6 Core Hits 61 | 5 14 24 15 2 1 Critical Kills . | . . . . . . Critical Parts Destroyed . | . . . . . . Critical Strikes . | . . . . . . Melee Attacks 40 | . 12 19 . . 9 Impact 6 | . . . . . 6 Slashing 31 | . 12 19 . . . Piercing . | . . . . . . Sneak Attacks 10 | . 3 3 . . 4 Combat Hostiles . | . . . . . . Follow-up Attacks . | . . . . . . Damage Inflicted 2578 | 169 620 848 650 93 198 Guns 871 | 169 426 225 . 51 . Cannons 192 | . . . 150 42 . Explosions 758 | . . 258 500 . . Melee 755 | . 194 363 . . 198 Ramming . | . . . . . . Kinetic 745 | 91 336 225 . 93 . Thermal 320 | 78 90 2 150 . . Explosive 758 | . . 258 500 . . Electromagnetic . | . . . . . . Impact 198 | . . . . . 198 Slashing 557 | . 194 363 . . . Piercing . | . . . . . . Highest Corruption 2 | . . . . . 2 Average Corruption 2 | . . . . . 2 Corruption Purged . | . . . . . . Corruption Blocked . | . . . . . . Overload Shots . | . . . . . . Overflow Damage 107 | . 5 32 13 . 57 Projectiles . | . . . . . . Explosions 13 | . . . 13 . . Melee 94 | . 5 32 . . 57 Knockbacks 1 | . . . . 1 . Impact . | . . . . . . Kinetic 1 | . . . . 1 . Secondary . | . . . . . . Self-Inflicted Damage 15 | . . . 15 . . Shots 1 | . . . 1 . . Rammed . | . . . . . . Targets Rammed . | . . . . . . Kicked . | . . . . . . Crushed . | . . . . . . Highest Temperature 174 | . 72 8 174 12 3 Average Temperature 49 | . 24 4 82 8 3 Received Heat Transfer 599 | . 132 231 96 . 140 Siege Activations . | . . . . . . Robots Corrupted . | . . . . . . Combat Hostiles . | . . . . . . Parts Fried . | . . . . . . Impact Corruptions 1 | . . . . . 1 Robots Melted . | . . . . . . Combat Hostiles . | . . . . . . Parts Melted . | . . . . . . Heat Transferred 622 | 175 200 25 222 . . Parts Sabotaged . | . . . . . . Parts Stolen . | . . . . . . Parts Stripped . | . . . . . . Power Chain Reactions . | . . . . . . Missiles Intercepted . | . . . . . . Alert | -11 -10 -10 -9 -9 -9 ------- Run | Jun Mat Min Mat Min Exi Peak Influence 391 | 20 164 200 391 227 . Initial 152 | . 13 19 19 152 . Average 96 | 9 91 77 238 189 . Maximum Alert Level 1 | . . 1 1 1 . Low Security (%) 85 | 100 100 86 35 51 . Level 1 14 | . . 13 64 48 . Level 2 . | . . . . . . Level 3 . | . . . . . . Level 4 . | . . . . . . Level 5 . | . . . . . . High Security . | . . . . . . Max Security . | . . . . . . Squads Dispatched 2 | . 1 1 . . . Investigation 1 | . 1 . . . . Extermination . | . . . . . . Reinforcement . | . . . . . . Assault 1 | . . 1 . . . Garrison . | . . . . . . Intercept . | . . . . . . Searches Triggered . | . . . . . . Construction Impeded . | . . . . . . Haulers Reinforced . | . . . . . . Active Scanning Responses . | . . . . . . Cargo Convoy Interrupts . | . . . . . . Stealth | -11 -10 -10 -9 -9 -9 --------- Run | Jun Mat Min Mat Min Exi Distress Signals 5 | . 3 . 2 . . Communications Jammed . | . . . . . . Distress Signals . | . . . . . . Times Spotted 48 | . 15 13 10 3 7 Peak Tracking Total 7 | . 4 4 4 3 7 Tactical Retreats 4 | . 2 2 . . . Traps | -11 -10 -10 -9 -9 -9 ------- Run | Jun Mat Min Mat Min Exi Traps Triggered 2 | . 1 . 1 . . Indirectly . | . . . . . . Trap Hack Attempts . | . . . . . . Triggered . | . . . . . . Disarmed . | . . . . . . Reprogrammed . | . . . . . . Reused . | . . . . . . Traps Extracted . | . . . . . . Installed 1 | . . 1 . . . Triggered . | . . . . . . Most Traps Carried 3 | . . 3 . . . Machines | -11 -10 -10 -9 -9 -9 ---------- Run | Jun Mat Min Mat Min Exi Machines Disabled 1 | . . . 1 . . Max in Single Turn 1 | . . . 1 . . Machines Repaired . | . . . . . . Machines Sabotaged . | . . . . . . Overloaded Fab Kills . | . . . . . . Hacking | -11 -10 -10 -9 -9 -9 --------- Run | Jun Mat Min Mat Min Exi Machines Accessed 12 | . 5 1 5 . 1 Terminals 8 | . 4 . 4 . . Fabricators . | . . . . . . Repair Stations . | . . . . . . Recycling Units 1 | . 1 . . . . Scanalyzers 1 | . . . 1 . . Garrison Access . | . . . . . . Total Hacks 24 | . 12 1 10 . 1 Successful 14 | . 6 1 6 . 1 Failed 10 | . 6 . 4 . . Catastrophic 5 | . 2 . 3 . . Database Lockouts . | . . . . . . Manual 11 | . 6 . 4 . 1 Terminals 19 | . 11 . 8 . . Fabricators . | . . . . . . Repair Stations . | . . . . . . Recycling Units 1 | . 1 . . . . Scanalyzers 2 | . . . 2 . . Garrison Access . | . . . . . . Terminal Hacks 11 | . 5 1 4 . 1 Record 1 | . . . . . 1 Robot Analysis 1 | . 1 . . . . Prototype ID Bank 1 | . 1 . . . . Open Door 1 | . . 1 . . . Terminal Index 1 | . 1 . . . . Recycling Unit Index 1 | . 1 . . . . Locate Traps 2 | . 1 . 1 . . Dispatch Records 1 | . . . 1 . . Hauler Manifests 1 | . . . 1 . . Zone Layout 1 | . . . 1 . . Fabricator Hacks . | . . . . . . Repair Station Hacks . | . . . . . . Recycling Unit Hacks 1 | . 1 . . . . Report Inventory 1 | . 1 . . . . Scanalyzer 2 | . . . 2 . . Insert Component 1 | . . . 1 . . Analyze 1 | . . . 1 . . Garrison Access Hacks . | . . . . . . Unauthorized Hacks . | . . . . . . Terminals . | . . . . . . Fabricators . | . . . . . . Repair Stations . | . . . . . . Recycling Units . | . . . . . . Scanalyzers . | . . . . . . Garrison Access . | . . . . . . Data Cores Recovered . | . . . . . . Used . | . . . . . . Hacking Detections 9 | . 4 . 5 . . Full Trace Events . | . . . . . . Feedback Events . | . . . . . . Feedback Blocked . | . . . . . . Robot Schematics Acquired . | . . . . . . Robots Built . | . . . . . . Authchips . | . . . . . . Time . | . . . . . . Total Robot Build Rating . | . . . . . . Part Schematics Acquired 1 | . . . 1 . . Parts Built . | . . . . . . Authchips . | . . . . . . Time . | . . . . . . Total Part Build Rating . | . . . . . . Parts Repaired . | . . . . . . Time . | . . . . . . Parts Recycled . | . . . . . . Recycled Matter . | . . . . . . Retrieved Matter . | . . . . . . Retrieved Components . | . . . . . . Parts Scanalyzed 1 | . . . 1 . . Part Schematics Acquired 1 | . . . 1 . . Parts Damaged . | . . . . . . Bothacking | -11 -10 -10 -9 -9 -9 ------------ Run | Jun Mat Min Mat Min Exi Used RIF Installer . | . . . . . . Robots Hacked 3 | . . . . . 3 Non-combat 2 | . . . . . 2 Combat 1 | . . . . . 1 Robot Hacks Applied 3 | . . . . . 3 parse_system 3 | . . . . . 3 Relay Couplers Released . | . . . . . . Fabnet Peak Effective % . | . . . . . . Robots Rewired . | . . . . . . Allies Hacked . | . . . . . . Hacks Repelled . | . . . . . . Allies | -11 -10 -10 -9 -9 -9 -------- Run | Jun Mat Min Mat Min Exi Total Allies 1 | . . 1 . . . Largest Group 1 | . . 1 1 1 1 Highest-Rated Group 31 | . . 31 31 31 31 Highest-Rated Ally 31 | . . 31 31 31 31 Total Orders . | . . . . . . Ally Attacks 21 | . . 5 12 3 1 Total Damage 357 | . . 82 190 65 20 Kills 6 | . . 2 2 1 1 Allies Corrupted . | . . . . . . Allies Melted . | . . . . . . Intel | -11 -10 -10 -9 -9 -9 ------- Run | Jun Mat Min Mat Min Exi Robot Analysis Total 1 | . 1 . . . . Derelict Logs Recovered 2 | . . 2 . . . Drone Launches . | . . . . . . Drone Recoveries . | . . . . . . Exploration | -11 -10 -10 -9 -9 -9 ------------- Run | Jun Mat Min Mat Min Exi Turns Passed 2221 | 122 567 953 167 72 340 Spaces Moved 2632 | 82 407 1021 256 95 771 Core 45 | 20 . 5 . . 20 Treads . | . . . . . . Legs 126 | . . 126 . . . Wheels 514 | 62 173 279 . . . Hover 311 | . 234 77 . . . Flight 1636 | . . 534 256 95 751 Fastest Speed 34 | 50 56 37 34 34 34 Average Speed 56 | 80 97 61 34 34 34 Slowest Speed 200 | 90 180 200 37 34 100 Overloaded Moves . | . . . . . . Propulsion Burnouts . | . . . . . . Robots Hopped . | . . . . . . Cave-ins Triggered . | . . . . . . Exploration Rate (%) 49 | 3 63 96 30 14 93 Regions Visited 5 Branch Regions 3 Pre-discovered Areas 2 | . . 1 . . 1 Known Exits Taken 2 | . . 1 1 . . Unknown Exits Taken 3 | 1 1 . . 1 . Scrap Searched 2 | . . 1 . 1 . Spaces Dug 6 | . 5 . 1 . . Terrain Destroyed 85 | . 5 13 66 1 . Melee 5 | . 5 . . . . Projectile 5 | . . . 4 1 . AOE 75 | . . 13 62 . . Terrain Rammed . | . . . . . . Walls Destroyed . | . . . . . . Machines Disabled . | . . . . . . Actions | -11 -10 -10 -9 -9 -9 --------- Run | Jun Mat Min Mat Min Exi Total 3168 | 113 505 1278 316 124 832 Wait 206 | . 8 128 16 15 39 Move 2627 | 81 406 1020 255 94 771 Hop . | . . . . . . Pick Up 58 | 13 17 18 5 2 3 Fast Attach 19 | 1 2 6 8 . 2 Attach 26 | 6 5 11 2 1 1 Detach 4 | . . 2 2 . . Swap 32 | . 10 11 3 4 4 Drop 52 | . 14 25 7 3 3 Fire 103 | 12 31 37 18 5 . Melee 40 | . 12 19 . . 9 Ram . | . . . . . . Kick . | . . . . . . Crush . | . . . . . . Escape Stasis . | . . . . . . Rewire . | . . . . . . Trap 1 | . . 1 . . . Miscellaneous . | . . . . . . Route ------- -11/Junkyard -10/Materials (discovered 3 exits: *Mat x2 / *Min) -10/Mines (discovered 2 exits: *Mat x2) -9/Materials -9/Mines -9/Exiles (discovered 2 exits: *Min x2) History --------- Turn | Location | Event 15 | -11/Junkyard | Discovered new exit (range 16) 123 | -11/Junkyard | Entered Materials 516 | -10/Materials | Discovered new exit (range 5) 518 | -10/Materials | Discovered new exit (range 15) 663 | -10/Materials | Discovered new exit (range 7) 675 | -10/Materials | Build established: Mutant 680 | -10/Materials | Core integrity fell below 50% 690 | -10/Materials | Entered Mines 739 | -10/Mines | Discovered new exit (range 5) 801 | -10/Mines | Core integrity fell below 20% 839 | -10/Mines | Lost 5 parts (4n1w) 846 | -10/Mines | Identified exit to Materials 1042 | -10/Mines | Found a hidden stash of uninstalled traps 1119 | -10/Mines | Met a Derelict testing a Signal Generator 1133 | -10/Mines | Learned location of Storage (-7) 1264 | -10/Mines | Learned Materials interactive machine intel 1280 | -10/Mines | Build established: Scavenger-Mutant 1316 | -10/Mines | Discovered exit to Materials (range 10) 1393 | -10/Mines | Met a Derelict who couldn't figure out how to use a Trap Extractor 1643 | -10/Mines | Entered Materials 1643 | -9/Materials | Accompanied by 1 ally 1643 | -9/Materials | Evolved 2 slots: Propulsion x1, Utility x1 1644 | -9/Materials | Loaded intel: 17 interactive machine locations 1783 | -9/Materials | Discovered new exit (range 16) 1796 | -9/Materials | Identified exit to Mines 1810 | -9/Materials | Entered Mines 1810 | -9/Mines | Accompanied by 1 ally 1865 | -9/Mines | Deemed a non-threat by the Exiles lab entrance 1865 | -9/Mines | Discovered new exit (range 5) 1882 | -9/Mines | Entered Exiles 1882 | -9/Exiles | Accompanied by 1 ally 1887 | -9/Exiles | Discovered new exit (range 15) 1894 | -9/Exiles | Identified exit to Mines 1900 | -9/Exiles | Met 8R-AWN 1919 | -9/Exiles | Met EX-HEX 1938 | -9/Exiles | Met EX-BIN 1947 | -9/Exiles | Aligned with FarCom system 1948 | -9/Exiles | Given EX-Vault access code 1959 | -9/Exiles | Opened EX-Vault 1962 | -9/Exiles | Found Prototype Processor 1965 | -9/Exiles | Identified Modified TNC 1978 | -9/Exiles | Warned to stay clear of 0b10 Research branches 1988 | -9/Exiles | Met EX-DEC 1998 | -9/Exiles | Learned location of Zion (-7) 2053 | -9/Exiles | Visited The Gauntlet 2133 | -9/Exiles | Discovered exit to Mines (range 10) 2194 | -9/Exiles | Attacked by the Exiles 2205 | -9/Exiles | Core integrity fell below 50% 2215 | -9/Exiles | Core integrity fell below 20% 2222 | -9/Exiles | Destroyed by as-73381 with Assembled Heavy Rifle Last Messages --------------- HV Slug penetrates Machine. HV Slug penetrates Wall. Penetrated by HV Slug. Flight Unit destroyed. HV Slug penetrates Wall. Machine disabled. Penetrated by HV Slug. HV Slug penetrates EX-HEX. EX-HEX suffers critical hit (Destroy). Acquired 13 matter. Acquired Carbon-fiber Leg. Flail destroyed. HV Slug penetrates Wall. Penetrated by HV Slug. Acquired Beamcaster. Penetrated by HV Slug. HV Slug penetrates Wall. Penetrated by HV Slug. Critical hit (Destroy). Beamcaster destroyed. Map ----- +----------------------------------------------------+ | ???????##"###### #?#"""""""#?????????????????? | | ??????? "?????# #?#"""""""#?????????????????? | | ??????"""??????# #?#"""""""#?????????????????? | | ??????"""?????## ###"" """"#?????????????????? | | ??????????????#" """"#?????????????????? | | ??????????????#" """#?????????????????? | | ??????????????#" """#?????????????????? | | ??????????????#" """#?????????????????? | | #######???????#" """#?????????????????? | | """#???????#" """##????????????????? | | "" """#???????## """""????????????????? | | "" #????????# """##????????????????? | | "" #????????#" "X" """""????????????????? | | "" "#????????#" """ # ????????????????? | | ""#????????#" """""""""#?????????????????? | | "" ""#???????##" ###########?????????????????? | | ## ###??????##"" #???????????????????????????? | | ## ###?######"" #???????????#???????????????? | | X# #"###""""""" ##??????????#???????????????? | | """""" " "" ##???###########???????????? | | "" """ " #####"""""""""##??????????? | | " " " "" """"##?????????? | | "" #?????????? | | " """#?????????? | | "a"#?????????? | | @ " "##????????? | | ""###??????? | | """""" """#??????# | | ######""" "#????### | | ""##????#####""" a ##???# | | """##?????????##""" % ##?## | | """##???????????#""""c ### | | ""#???????????##"" | | ########??####"""" | | ## ####""" " | | """" #""" | | ##### | | ##???? | | " ###?#?? | | " "" % ""#?????? | | ""## ##""" " " ""# % % "##?????? | | ""#### ######""" "" ## """##??????? | | """"##??# #????###""""###########???????? | | """#??## ####???######?????????????????? | | ""##??#! [ "!#??????????????????????????? | | """##???#" #??????#??#????#???????????# | | ##????#" "#??????????????????????????? | | " ##?????#!!""!"#??????????????#???????????? | | #??????########??????????????????????????? | | ### ##??????????????????????????????????#?????? | +----------------------------------------------------+ Best States ------------- Heat Dissipation 28 Energy Generation 14 Energy Capacity 160 Matter Stores 291 Matter Capacity 300 Sight Range 16 Robot Scan Range 14 Terrain Scan Range 16 Terrain Scan Density 10 ECM Strength 1 Additional Mass Support 9 Evasion (%) 63 Item Schematics ----------------- Datajack | -9/Materials | Scanalyzed Robot Schematics ------------------ None Fabricated ------------ Nothing Alien Tech Used ----------------- None Achievements -------------- None Challenges ------------ None Game ------ Seed BombMinesnifferBeam Manual? 0 Play Time 01:12:02 Cumulative 38.8 hours Start 2023.06.26 @ 11:02:29 End 2023.06.26 @ 12:12:46 Sessions 1 Manual Loads 0 Difficulty Rogue Special Mode None Game No. 12 Rogue 10 Adventurer 1 Explorer 1 Win Type - Total 1 Types 1/0/0/0/0/0/0/0/0 Lore% 20 Gallery% 35 Achievement% 33 Wizard Run 0 Options --------- ASCII 0 Keyboard 0 Movement Mouse Keybinds 0 Fullscreen 1 Font 18/SmallcapsGlow Map View 76x50 Tactical HUD 0 Map Filters NONE Filters NONE Steam 1 RUN: bc794352-24bb-48fa-a1ef-c72b3e38880f